[Event "Panevezys Elite 2018"]
[Site "Panevezys"]
[Date "2018.07.06"]
[Round "9"]
[White "Kalinowska, Zuzanna"]
[Black "Krivonosov, Oleg"]
[Result "0-1"]
[ECO "D56"]
[WhiteElo "1966"]
[BlackElo "2399"]
[Annotator "NA"]
[PlyCount "75"]
[EventDate "2018.06.29"]
[EventType "swiss"]
[EventRounds "9"]
[EventCountry "LTU"]
[SourceTitle "playchess.com"]
[Source "ChessBase"]
[SourceQuality "1"]
[TimeControl "40/5400+30:1800+30"]

{[%evp 8,72,31,13,15,7,8,8,29,14,31,-1,0,-14,-8,-1,-2,0,-10,-7,-5,-13,10,0,7,0,0,0,15,-6,32767,32767,32767,32767,32767,32767,32767,0,32767,32767,32767,0,32767,32767,32767,32767,0,32767,32767,32767,0,0,0,32767,32767,32767,32767,32767,32767,-100,-95,32767,32767,32767,32767,32767,-388]} 1. d4 {[%emt 0:00:00]} d5 {[%emt 0:00:00]} 2. c4 {[%emt 0:00:00]} e6 {[%emt 0:00:00]} 3. Nc3 {[%emt 0:00:00]} Be7 {[%emt 0:00:00]} 4. Nf3 {[%emt 0:00:00]} Nf6 {[%emt 0:00:03]} 5. Bg5 {[%emt 0:00:14]} h6 {[%emt 0:00:18]} 6. Bh4 {[%emt 0:00:20]} O-O {[%emt 0:00:10]} 7. e3 {[%emt 0:00:24]} Ne4 {[%emt 0:00:18]} 8. Bxe7 {[%emt 0:00:26]} Qxe7 {[%emt 0:00:07]} 9. Bd3 {[%emt 0:01:02]} Nxc3 {[%emt 0:00:34]} 10. bxc3 {[%emt 0:00:08]} dxc4 {[%emt 0:00:14]} 11. Bxc4 {[%emt 0:00:19] LiveBook: 36 Games} b6 {[%emt 0:00:25] D56: Queen's Gambit Declined: Lasker Defence} 12. O-O {[%emt 0:01:56]} Bb7 {[%emt 0:00:26]} 13. Re1 {[%emt 0:02:29]} (13. Qe2 Nd7 14. Rfd1 c5 15. a4 {½-½ (15) Goncharov,O (2392)-Vlasenko,A (2436) Golubitskaya 2018}) 13... c5 {[%emt 0:02:31]} 14. Qe2 {[%emt 0:08:05]} Nd7 {[%emt 0:01:05]} 15. a4 $146 {[%emt 0:05:39]} ({Predecessor:} 15. e4 cxd4 16. cxd4 Nf6 17. Bd3 Rac8 18. Rac1 Qa3 19. Rxc8 Rxc8 20. h4 Rc1 21. Qe3 Rxe1+ 22. Nxe1 Bxe4 23. Bxe4 Qxe3 {0-1 (36) Rouquet,R (2050)-Eustache,B (2156) France 2005}) 15... Rac8 {[%emt 0:09:09]} 16. Ba6 {[%emt 0:04:56]} Nf6 {[%emt 0:04:14]} 17. a5 {[%emt 0:04:49]} Ne4 {[%emt 0:06:58]} 18. Bxb7 {[%emt 0:02:19]} Qxb7 {[%emt 0:00:06]} 19. axb6 {[%emt 0:05:06]} axb6 {[%emt 0:00:19]} 20. Qb2 {[%emt 0:01:22]} cxd4 {[%emt 0:07:29]} 21. cxd4 {[%emt 0:00:27]} Rc7 {[%emt 0:00:24]} 22. Rec1 {[%emt 0:05:31]} Rfc8 {[%emt 0:00:59]} 23. Rxc7 {[%emt 0:02:43]} Qxc7 {[%emt 0:01:46]} 24. Ne5 {[%emt 0:01:28]} Nc3 {[%emt 0:21:06]} 25. Nd3 {[%emt 0:04:19]} Qc4 {[%emt 0:03:47]} 26. Ne5 {[%emt 0:03:00]} Qc7 {[%emt 0:00:34]} 27. Nd3 {[%emt 0:01:49]} Nd5 {[%emt 0:02:40]} 28. Rc1 {[%emt 0:01:46]} Qb8 {[%emt 0:01:16]} 29. Rxc8+ {[%emt 0:02:33]} Qxc8 {[%emt 0:00:04]} 30. e4 {[%emt 0:00:44]} Nc3 {[%emt 0:10:13]} 31. Qxb6 {[%emt 0:04:06]} Qc4 {[%emt 0:06:08]} 32. Nf4 {[%emt 0:03:49]} Nxe4 {[%emt 0:01:45]} 33. Qb8+ {[%emt 0:03:40]} Kh7 {[%emt 0:00:07]} 34. Qb1 {[%emt 0:00:13]} Qxd4 {[%emt 0:01:57]} 35. Nd3 {[%emt 0:08:13]} f5 {[%emt 0:02:05]} 36. g3 {[%emt 0:02:32]} Nd2 $19 {[%emt 0:04:17]} 37. Qc2 Nf3+ 38. Kg2 0-1